fUSD/lending_fUSD_20241003
["ID","MTS","AMOUNT","RATE_DAILY","PERIOD"]
[339795731,1727987561600,-1031.81,0.00036712,120]
[339795732,1727987561609,-500.0,0.00036712,120]
[339795733,1727987561619,-500.0,0.00036712,120]
[339795734,1727987561628,-2770.27,0.00036712,120]
[339795735,1727987561638,-2126.28,0.00036712,120]
[339795736,1727987561648,-500.0,0.00036712,120]
[339795737,1727987561657,-3109.58,0.00036712,120]
[339795738,1727987561667,-410.82730032,0.00036712,120]
[339795739,1727987561676,-1989.39,0.00036712,120]
[339795740,1727987561686,-2838.83,0.00036712,120]
[339795741,1727987561695,-2489.9,0.00036712,120]
[339795742,1727987561705,-2454.73,0.00036712,120]
[339795743,1727987561714,-1548.63,0.00036712,120]
[339795744,1727987561723,-1539.86,0.00036712,120]
[339795745,1727987561732,-751.5,0.00036712,120]
[339795746,1727987561742,-1135.51,0.00036712,120]
[339795747,1727987561751,-500.0,0.00036712,120]
[339795748,1727987561760,-26307.75,0.00036712,120]
[339795749,1727987561770,-1359.32,0.00036712,120]
[339795750,1727987561779,-920.13,0.00036712,120]
[339795751,1727987561788,-2373.28,0.00036712,120]
[339795752,1727987561797,-723.9,0.00036712,120]
[339795753,1727987561806,-500.0,0.00036712,120]
[339795754,1727987561816,-683.05,0.00036712,120]
[339795755,1727987561825,-500.0,0.00036712,120]
[339795756,1727987561835,-1328.33,0.00036712,120]
[339795757,1727987561844,-1718.99,0.00036712,120]
[339795758,1727987561853,-500.0,0.00036712,120]
[339795759,1727987561866,-2515.59,0.00036712,120]
[339795760,1727987561875,-953.41,0.00036712,120]
[339795761,1727987561885,-876.22,0.00036712,120]
[339795762,1727987561894,-1281.35,0.00036712,120]
[339795763,1727987561904,-2264.01,0.00036712,120]
[339795764,1727987561914,-2588.02,0.00036712,120]
[339795765,1727987561923,-1057.1,0.00036712,120]
[339795766,1727987561932,-1543.66,0.00036712,120]
[339795767,1727987561942,-567.28,0.00036712,120]
[339795768,1727987561953,-1173.73,0.00036712,120]
[339795769,1727987561963,-622.45,0.00036712,120]
[339795770,1727987561972,-831.03,0.00036712,120]
[339795771,1727987561981,-574.46,0.00036712,120]
[339795772,1727987561992,-605.72,0.00036712,120]
[339795773,1727987562001,-656.14,0.00036712,24]
[339795774,1727987562010,-999.57,0.00036712,120]
[339795775,1727987562020,-1059.55,0.00036712,120]
[339795776,1727987562029,-1114.36,0.00036712,120]
[339795777,1727987562038,-500.0,0.00036712,120]
[339795778,1727987562048,-2557.98,0.00036712,120]
[339795779,1727987562057,-985.85,0.00036712,120]
[339795780,1727987562066,-2619.08,0.00036712,120]
[339795781,1727987562075,-2196.8,0.00036712,120]
[339795782,1727987562085,-1368.57,0.00036712,120]
[339795783,1727987562094,-534.46,0.00036712,120]
[339795784,1727987562103,-623.45,0.00036712,120]
[339795785,1727987562113,-1760.97,0.00036712,120]
[339795786,1727987562123,-4833.89,0.00036712,120]
[339795787,1727987562132,-1036.03,0.00036712,120]
[339795788,1727987562143,-613.95,0.00036712,120]
[339795789,1727987562152,-1295.57,0.00036712,120]
[339795790,1727987562162,-1437.23,0.00036712,120]
[339795791,1727987562172,-1100.59,0.00036712,120]
[339795792,1727987562182,-581.64,0.00036712,120]
[339795793,1727987562191,-500.0,0.00036712,120]
[339795794,1727987562202,-1584.05,0.00036712,120]
[339795795,1727987562212,-500.0,0.00036712,120]
[339795796,1727987562222,-1739.53,0.00036712,120]
[339795797,1727987562231,-780.59,0.00036712,120]
[339795798,1727987562240,-500.0,0.00036712,120]
[339795799,1727987562250,-10179.37,0.00036712,120]
[339795800,1727987562259,-1002.66,0.00036712,120]
[339795801,1727987562269,-567.89,0.00036712,120]
[339795802,1727987562278,-504.47,0.00036712,120]
[339795803,1727987562287,-859.91,0.00036712,120]
[339795804,1727987562297,-8270.07,0.00036712,21]
[339795805,1727987562306,-669.41,0.00036712,120]
[339795806,1727987562315,-2304.02,0.00036712,120]
[339795807,1727987562324,-4586.08,0.00036712,120]
[339795808,1727987562333,-631.12,0.00036712,120]
[339795809,1727987562344,-1138.44,0.00036712,120]
[339795810,1727987562355,-811.67,0.00036712,120]
[339795811,1727987562364,-536.29,0.00036712,120]
[339795812,1727987562373,-994.04,0.00036712,120]
[339795813,1727987562382,-2251.5019805,0.00036733,7]
[339795814,1727987562392,-3007.50576663,0.00036733,7]
[339795815,1727987562402,-2899.87242423,0.00036733,7]
[339795816,1727987562411,-166.51670697,0.0003689,120]
[339795817,1727987562420,-1000.0,0.000369,120]
[339795818,1727987562429,-2825.90973795,0.00036948,56]
[339795819,1727987562438,-906076.7133237,0.0003698,30]
[339795820,1727987562447,-500.0,0.00036986,7]
[339795821,1727987562457,-500.0,0.00036986,120]
[339795822,1727987562468,-1830.04,0.00036986,120]
[339795823,1727987562478,-1465.14,0.00036986,120]
[339795824,1727987562487,-731.74,0.00036986,120]
[339795825,1727987562496,-500.0,0.00036986,120]
[339795826,1727987562506,-500.0,0.00036986,120]
[339795827,1727987562516,-1375.31,0.00036986,120]
[339795828,1727987562527,-668.57,0.00036986,120]
[339795829,1727987562537,-500.0,0.00036986,120]
[339795830,1727987562547,-1062.68,0.00036986,120]
[339795831,1727987562558,-1108.65,0.00036986,120]
[339795832,1727987562567,-1917.75,0.00036986,120]
[339795833,1727987562576,-1239.66,0.00036986,120]
[339795834,1727987562585,-749.5,0.00036986,120]
[339795835,1727987562594,-1219.3,0.00036986,120]
[339795836,1727987562613,-1706.35,0.00036986,120]
[339795837,1727987562631,-1816.28,0.00036986,120]
[339795838,1727987562650,-608.59,0.00036986,120]
[339795839,1727987562669,-688.2,0.00036986,120]
[339795840,1727987562690,-818.32,0.00036986,120]
[339795841,1727987562707,-2173.75,0.00036986,120]
[339795842,1727987562732,-721.06,0.00036986,120]
[339795843,1727987562746,-2649.5,0.00036986,120]
[339795844,1727987562763,-500.0,0.00036986,120]
[339795845,1727987562782,-500.0,0.00036986,120]
[339795846,1727987562798,-500.0,0.00036986,120]
[339795847,1727987562814,-952.32,0.00036986,120]
[339795848,1727987562830,-500.0,0.00036986,15]
[339795849,1727987562849,-508.75,0.00036986,120]
[339795850,1727987562867,-500.0,0.00036986,120]
[339795851,1727987562883,-2782.16,0.00036986,120]
[339795852,1727987562899,-500.0,0.00036986,120]
[339795853,1727987562919,-500.0,0.00036986,120]
[339795854,1727987562936,-799.66,0.00036986,120]
[339795855,1727987562951,-500.0,0.00036986,120]
[339795856,1727987562967,-528.54,0.00036986,120]
[339795857,1727987562981,-500.0,0.00036986,120]
[339795858,1727987562998,-1116.48,0.00036986,120]
[339795859,1727987563012,-500.0,0.00036986,120]
[339795860,1727987563027,-500.0,0.00036986,120]
[339795861,1727987563042,-667.6,0.00036986,120]
[339795862,1727987563058,-516.86,0.00036986,120]
[339795863,1727987563073,-577.36,0.00036986,120]
[339795864,1727987563088,-500.0,0.00036986,120]
[339795865,1727987563104,-1181.76,0.00036986,120]
[339795866,1727987563119,-2275.0,0.00036986,120]
[339795867,1727987563134,-1059.01,0.00036986,120]
[339795868,1727987563150,-500.0,0.00036986,120]
[339795869,1727987563165,-678.32,0.00036986,120]
[339795870,1727987563179,-908.96,0.00036986,120]
[339795871,1727987563194,-500.0,0.00036986,120]
[339795872,1727987563208,-806.47,0.00036986,120]
[339795873,1727987563232,-1850.2,0.00036986,120]
[339795874,1727987563247,-500.0,0.00036986,120]
[339795875,1727987563262,-500.0,0.00036986,120]
[339795876,1727987563277,-532.65,0.00036986,120]
[339795877,1727987563292,-500.0,0.00036986,120]
[339795878,1727987563307,-500.0,0.00036986,120]
[339795879,1727987563322,-951.98,0.00036986,120]
[339795880,1727987563337,-3113.1,0.00036986,120]
[339795881,1727987563352,-952.18,0.00036986,120]
[339795882,1727987563368,-1578.27,0.00036986,120]
[339795883,1727987563384,-799.85,0.00036986,120]
[339795884,1727987563398,-708.6,0.00036986,120]
[339795885,1727987563416,-584.82,0.00036986,120]
[339795886,1727987563431,-560.83,0.00036986,120]
[339795887,1727987563445,-610.78,0.00036986,120]
[339795888,1727987563461,-1249.01,0.00036986,120]
[339795889,1727987563477,-500.0,0.00036986,120]
[339795890,1727987563492,-1225.26,0.00036986,120]
[339795891,1727987563508,-911.79,0.00036986,120]
[339795892,1727987563525,-817.82,0.00036986,120]
[339795893,1727987563541,-517.59,0.00036986,120]
[339795894,1727987563556,-1292.49,0.00036986,7]
[339795895,1727987563572,-500.0,0.00036986,120]
[339795896,1727987563588,-762.72,0.00036986,120]
[339795897,1727987563604,-1184.87,0.00036986,120]
[339795898,1727987563619,-1701.57,0.00036986,120]
[339795899,1727987563634,-714.2,0.00036986,120]
[339795900,1727987563651,-1396.71,0.00036986,120]
[339795901,1727987563667,-1713.42,0.00036986,120]
[339795902,1727987563681,-676.51,0.00036986,120]
[339795903,1727987563697,-543.4,0.00036986,120]
[339795904,1727987563712,-615.69,0.00036986,120]
[339795905,1727987563726,-675.57,0.00036986,120]
[339795906,1727987563741,-822.0,0.00036986,120]
[339795907,1727987563756,-500.0,0.00036986,120]
[339795908,1727987563770,-781.4,0.00036986,120]
[339795909,1727987563784,-747.69,0.00036986,120]
[339795910,1727987563798,-500.0,0.00036986,120]
[339795911,1727987563813,-911.34,0.00036986,120]
[339795912,1727987563827,-617.77,0.00036986,120]
[339795913,1727987563842,-507.9,0.00036986,120]
[339795914,1727987563857,-500.0,0.00036986,120]
[339795915,1727987563877,-1099.61,0.00036986,120]
[339795916,1727987563892,-500.0,0.00036986,120]
[339795917,1727987563909,-1245.73,0.00036986,120]
[339795918,1727987563924,-605.0,0.00036986,120]
[339795919,1727987563940,-614.52,0.00036986,120]
[339795920,1727987563956,-570.35,0.00036986,120]
[339795921,1727987563971,-806.75,0.00036986,120]
[339795922,1727987563986,-761.4,0.00036986,120]
[339795923,1727987564001,-500.0,0.00036986,120]
[339795924,1727987564016,-1016.56,0.00036986,120]
[339795925,1727987564033,-500.0,0.00036986,120]
[339795926,1727987564048,-908.19,0.00036986,120]
[339795927,1727987564064,-500.0,0.00036986,120]
[339795928,1727987564078,-650.02,0.00036986,120]
[339795929,1727987564093,-2907.54,0.00036986,120]
[339795930,1727987564107,-1955.84,0.00036986,120]
[339795931,1727987564121,-666.23,0.00036986,120]
[339795932,1727987564136,-619.0,0.00036986,120]
[339795933,1727987564150,-1476.07,0.00036986,120]
[339795934,1727987564164,-500.0,0.00036986,120]
[339795935,1727987564179,-200.0,0.00036986,7]
[339795936,1727987564194,-664.13,0.00036986,120]
[339795937,1727987564208,-580.92,0.00036986,120]
[339795938,1727987564223,-559.23,0.00036986,120]
[339795939,1727987564237,-682.12,0.00036986,120]
[339795940,1727987564252,-662.07,0.00036986,120]
[339795941,1727987564266,-1017.64,0.00036986,120]
[339795942,1727987564281,-1843.32,0.00036986,120]
[339795943,1727987564295,-929.85,0.00036986,120]
[339795944,1727987564311,-903.96,0.00036986,120]
[339795945,1727987564328,-1244.9,0.00036986,120]
[339795946,1727987564342,-2059.5,0.00036986,120]
[339795947,1727987564358,-1208.85,0.00036986,120]
[339795948,1727987564374,-1392.18,0.00036986,120]
[339795949,1727987564387,-1754.22,0.00036986,120]
[339795950,1727987564401,-3096.26,0.00036986,120]
[339795951,1727987564415,-838.34,0.00036986,120]
[339795952,1727987564431,-500.0,0.00036986,120]
[339795953,1727987564445,-767.37,0.00036986,120]
[339795954,1727987564461,-1262.93,0.00036986,120]
[339795955,1727987564477,-900.49,0.00036986,120]
[339795956,1727987564492,-546.33,0.00036986,120]
[339795957,1727987564506,-1915.72,0.00036986,120]
[339795958,1727987564519,-871.88,0.00036986,120]
[339795959,1727987564533,-364.89130874,0.00036986,120]
[339795960,1727987564548,-542.05,0.00036986,120]
[339795961,1727987564562,-1246.58,0.00036986,120]
[339795962,1727987564576,-755.2,0.00036986,120]
[339795963,1727987564591,-515.39,0.00036986,120]
[339795964,1727987564606,-1449.61,0.00036986,120]
[339795965,1727987564621,-615.97,0.00036986,120]
[339795966,1727987564636,-500.0,0.00036986,120]
[339795967,1727987564650,-828.98,0.00036986,120]
[339795968,1727987564664,-522.48,0.00036986,120]
[339795969,1727987564678,-500.0,0.00036986,120]
[339795970,1727987564693,-769.93,0.00036986,120]
[339795971,1727987564708,-1535.42,0.00036986,120]
[339795972,1727987564723,-692.01,0.00036986,120]
[339795973,1727987564738,-500.0,0.00036986,120]
[339795974,1727987564753,-500.0,0.00036986,120]
[339795975,1727987564773,-617.57,0.00036986,120]
[339795976,1727987564787,-1322.47,0.00036986,120]
[339795977,1727987564802,-3041.51,0.00036986,120]
[339795978,1727987564817,-685.28,0.00036986,120]
[339795979,1727987564832,-1088.33,0.00036986,120]
[339795980,1727987564846,-678.3,0.00036986,120]
[339795981,1727987564863,-809.97,0.00036986,120]
[339795982,1727987564879,-617.35,0.00036986,120]
[339795983,1727987564893,-500.0,0.00036986,120]
[339795984,1727987564910,-504.49,0.00036986,120]
[339795985,1727987565230,-1000.0,0.00036986,120]
[339795986,1727987565240,-2582.55,0.00036986,14]
[339795987,1727987565251,-821.22,0.00036986,120]
[339795988,1727987565261,-291.81768015,0.00036986,120]
[339795989,1727987565270,-1192.92,0.00036986,120]
[339795990,1727987565280,-752.83,0.00036986,120]
[339795991,1727987565289,-500.0,0.00036986,120]
[339795992,1727987565299,-2036.76,0.00036986,2]
[339795993,1727987565308,-696.33,0.00036986,120]
[339795994,1727987565317,-1822.29,0.00036986,120]
[339795995,1727987565328,-500.0,0.00036986,120]
[339795996,1727987565338,-1595.23,0.00036986,120]
[339795997,1727987565348,-1676.96,0.00036986,120]
[339795998,1727987565357,-500.0,0.00036986,120]
[339795999,1727987565367,-1430.65,0.00036986,120]
[339796000,1727987565376,-500.0,0.00036986,120]
[339796001,1727987565385,-1022.58,0.00036986,120]
[339796002,1727987565394,-572.51,0.00036986,120]
[339796003,1727987565403,-743.36,0.00036986,120]
[339796004,1727987565413,-534.34,0.00036986,120]
[339796005,1727987565422,-722.75,0.00036986,120]
[339796006,1727987565432,-891.75,0.00036986,120]
[339796007,1727987565441,-2933.87,0.00036986,120]
[339796008,1727987565451,-734.12,0.00036986,120]
[339796009,1727987565461,-500.0,0.00036986,120]
[339796010,1727987565471,-830.44,0.00036986,120]
[339796011,1727987565481,-2736.92,0.00036986,120]
[339796012,1727987565491,-2840.63,0.00036986,120]
[339796013,1727987565501,-1668.6,0.00036986,120]
[339796014,1727987565511,-963.2,0.00036986,120]
[339796015,1727987565520,-3064.64,0.00036986,120]
[339796016,1727987565530,-895.53,0.00036986,120]
[339796017,1727987565540,-500.0,0.00036986,120]
[339796018,1727987565550,-603.25,0.00036986,120]
[339796019,1727987565560,-893.66,0.00036986,120]
[339796020,1727987565569,-1265.22,0.00036986,120]
[339796021,1727987565579,-648.93,0.00036986,120]
[339796022,1727987565588,-702.69,0.00036986,120]
[339796023,1727987565598,-912.75,0.00036986,120]
[339796024,1727987565608,-625.95,0.00036986,120]
[339796025,1727987565618,-500.0,0.00036986,120]
[339796026,1727987565627,-589.87,0.00036986,120]
[339796027,1727987565637,-904.15,0.00036986,120]
[339796028,1727987565647,-809.38,0.00036986,120]
[339796029,1727987565657,-556.05857767,0.00036986,120]
[339796030,1727987565667,-1583.67,0.00036986,120]
[339796031,1727987565677,-2849.48,0.00036986,120]
[339796032,1727987565686,-1559.78,0.00036986,120]
[339796033,1727987565696,-526.9,0.00036986,120]
[339796034,1727987565707,-522.66,0.00036986,120]
[339796035,1727987565717,-887.97,0.00036986,120]
[339796036,1727987565727,-608.69,0.00036986,120]
[339796037,1727987565737,-1196.23,0.00036986,120]
[339796038,1727987565747,-1435.23,0.00036986,120]
[339796039,1727987565757,-1891.17,0.00036986,120]
[339796040,1727987565767,-734.62,0.00036986,120]
[339796041,1727987565776,-1907.44,0.00036986,120]
[339796042,1727987565786,-500.0,0.00036986,5]
[339796043,1727987565795,-954.92,0.00036986,30]
[339796044,1727987565804,-760.37,0.00036986,120]
[339796045,1727987565814,-1267.83,0.00036986,120]
[339796046,1727987565823,-500.0,0.00036986,120]
[339796047,1727987565833,-3152.28,0.00036986,120]
[339796048,1727987565842,-2240.67,0.00036986,120]
[339796049,1727987565852,-500.0,0.00036986,120]
[339796050,1727987565865,-692.31,0.00036986,120]
[339796051,1727987565874,-4273.85,0.00036986,2]
[339796052,1727987565884,-566.42,0.00036986,120]
[339796053,1727987565893,-1375.15,0.00036986,120]
[339796054,1727987565904,-1352.94,0.00036986,120]
[339796055,1727987565913,-2143.59,0.00036986,120]
[339796056,1727987565923,-590.63726051,0.00036986,120]
[339796057,1727987565933,-500.0,0.00036986,120]
[339796058,1727987565944,-2552.25,0.00036986,120]
[339796059,1727987565955,-807.0,0.00036986,120]
[339796060,1727987565965,-500.0,0.00036986,120]
[339796061,1727987565975,-1929.43,0.00036986,120]
[339796062,1727987565984,-500.0,0.00036986,120]
[339796063,1727987565995,-687.7,0.00036986,120]
[339796064,1727987566004,-685.66,0.00036986,120]
[339796065,1727987566014,-500.0,0.00036986,120]
[339796066,1727987566024,-500.0,0.00036986,120]
[339796067,1727987566034,-500.0,0.00036986,120]
[339796068,1727987566043,-500.0,0.00036986,120]
[339796069,1727987566053,-1124.73,0.00036986,120]
[339796070,1727987566062,-500.0,0.00036986,120]
[339796071,1727987566072,-1267.04,0.00036986,120]
[339796072,1727987566082,-1073.96,0.00036986,120]
[339796073,1727987566092,-687.49,0.00036986,120]
[339796074,1727987566102,-515.88,0.00036986,120]
[339796075,1727987566111,-924.47,0.00036986,120]
[339796076,1727987566122,-3529.62,0.00036986,120]
[339796077,1727987566131,-457.73540639,0.00036986,120]
[339796078,1727987566141,-500.0,0.00036986,120]
[339796079,1727987566151,-2122.92,0.00036986,120]
[339796080,1727987566161,-1443.8,0.00036986,120]
[339796081,1727987566170,-583.93,0.00036986,120]
[339796082,1727987566180,-1130.17,0.00036986,120]
[339796083,1727987566190,-598.1,0.00036986,120]
[339796084,1727987566199,-500.0,0.00036986,120]
[339796085,1727987566209,-512.25,0.00036986,120]
[339796086,1727987566226,-739.66,0.00036986,120]
[339796087,1727987566236,-2221.7,0.00036986,120]
[339796088,1727987566246,-878.47,0.00036986,120]
[339796089,1727987566255,-753.47,0.00036986,120]
[339796090,1727987566265,-2105.23,0.00036986,120]
[339796091,1727987566274,-880.23,0.00036986,120]
[339796092,1727987566284,-1101.24,0.00036986,120]
[339796093,1727987566293,-500.0,0.00036986,120]
[339796094,1727987566303,-594.49,0.00036986,120]
[339796095,1727987566313,-500.0,0.00036986,120]
[339796096,1727987566322,-1746.33,0.00036986,120]
[339796097,1727987566332,-983.59,0.00036986,120]
[339796098,1727987566341,-1535.26,0.00036986,120]
[339796099,1727987566351,-3156.06,0.00036986,120]
[339796100,1727987566361,-889.14,0.00036986,120]
[339796101,1727987566371,-754.45,0.00036986,120]
[339796102,1727987566380,-640.32,0.00036986,120]
[339796103,1727987566390,-368.74168593,0.00036986,120]
[339796104,1727987566400,-2375.19,0.00036986,120]
[339796105,1727987566410,-580.84,0.00036986,120]
[339796106,1727987566420,-2171.15,0.00036986,120]
[339796107,1727987566429,-652.15,0.00036986,120]
[339796108,1727987566439,-970.9,0.00036986,120]
[339796109,1727987566448,-576.98,0.00036986,120]
[339796110,1727987566458,-2322.76,0.00036986,120]
[339796111,1727987566468,-2446.1,0.00036986,120]
[339796112,1727987566478,-500.0,0.00036986,120]
[339796113,1727987566488,-569.39,0.00036986,120]
[339796114,1727987566497,-865.83,0.00036986,120]
[339796115,1727987566507,-500.0,0.00036986,120]
[339796116,1727987566517,-559.14,0.00036986,120]
[339796117,1727987566526,-500.0,0.00036986,120]
[339796118,1727987566535,-526.15,0.00036986,120]
[339796119,1727987566545,-500.0,0.00036986,120]
[339796120,1727987566555,-500.0,0.00036986,120]
[339796121,1727987566565,-1022.47,0.00036986,120]
[339796122,1727987566574,-1404.02,0.00036986,120]
[339796123,1727987566584,-500.0,0.00036986,120]
[339796124,1727987566594,-641.91,0.00036986,120]
[339796125,1727987566604,-926.29,0.00036986,120]
[339796126,1727987566613,-796.9,0.00036986,120]
[339796127,1727987566623,-2021.14,0.00036986,120]
[339796128,1727987566632,-3420.05,0.00036986,120]
[339796129,1727987566642,-500.0,0.00036986,120]
[339796130,1727987566651,-585.28,0.00036986,120]
[339796131,1727987566661,-920.88,0.00036986,120]
[339796132,1727987566671,-1372.22,0.00036986,120]
[339796133,1727987566680,-501.73,0.00036986,120]
[339796134,1727987566691,-1014.09,0.00036986,120]
[339796135,1727987566701,-2342.53,0.00036986,120]
[339796136,1727987566711,-849.67,0.00036986,120]
[339796137,1727987566721,-500.0,0.00036986,120]
[339796138,1727987566731,-503.33,0.00036986,120]
[339796139,1727987566741,-650.32,0.00036986,120]
[339796140,1727987566751,-619.95,0.00036986,120]
[339796141,1727987566760,-4513.04,0.00036986,120]
[339796142,1727987566770,-697.86,0.00036986,120]
[339796143,1727987566780,-1906.45,0.00036986,120]
[339796144,1727987566790,-500.0,0.00036986,120]
[339796145,1727987566800,-588.73503792,0.00036986,120]
[339796146,1727987566809,-1342.8,0.00036986,120]
[339796147,1727987566819,-500.0,0.00036986,120]
[339796148,1727987566829,-4469.7,0.00036986,120]
[339796149,1727987566838,-2820.31,0.00036986,120]
[339796150,1727987566848,-1714.59,0.00036986,120]
[339796151,1727987566857,-1567.97,0.00036986,120]
[339796152,1727987566870,-858.96,0.00036986,120]
[339796153,1727987566879,-1071.24,0.00036986,120]
[339796154,1727987566888,-1083.26,0.00036986,120]
[339796155,1727987566898,-1923.73,0.00036986,120]
[339796156,1727987566909,-3953.73,0.00036986,120]
[339796157,1727987566918,-1541.86,0.00036986,120]
[339796158,1727987566928,-646.54,0.00036986,120]
[339796159,1727987566938,-2326.51,0.00036986,120]
[339796160,1727987566951,-825.35,0.00036986,120]
[339796161,1727987566962,-1401.87,0.00036986,120]
[339796162,1727987566971,-8162.3,0.00036986,120]
[339796163,1727987566982,-2202.86,0.00036986,3]
[339796164,1727987566992,-1721.6,0.00036986,120]
[339796165,1727987567001,-1824.09,0.00036986,120]
[339796166,1727987567011,-500.0,0.00036986,120]
[339796167,1727987567021,-797.25,0.00036986,120]
[339796168,1727987567030,-3694.14,0.00036986,120]
[339796169,1727987567040,-648.29,0.00036986,120]
[339796170,1727987567050,-1962.84,0.00036986,120]
[339796171,1727987567059,-770.99,0.00036986,120]
[339796172,1727987567069,-1812.58,0.00036986,120]
[339796173,1727987567078,-1106.97,0.00036986,120]
[339796174,1727987567088,-995.24,0.00036986,120]
[339796175,1727987567097,-1533.42,0.00036986,120]
[339796176,1727987567107,-1245.45,0.00036986,120]
[339796177,1727987567117,-2708.28,0.00036986,120]
[339796178,1727987567127,-919.76,0.00036986,120]
[339796179,1727987567137,-1028.68,0.00036986,120]
[339796180,1727987567146,-2392.87,0.00036986,120]
[339796181,1727987567156,-1219.91,0.00036986,120]
[339796182,1727987567165,-1971.05,0.00036986,120]
[339796183,1727987567175,-967.14,0.00036986,120]
[339796184,1727987567185,-11039.47,0.00036986,120]
[339796185,1727987567194,-1835.01,0.00036986,120]
[339796186,1727987567204,-647.95,0.00036986,120]
[339796187,1727987567215,-1066.51,0.00036986,120]
[339796188,1727987567224,-2065.61,0.00036986,120]
[339796189,1727987567234,-2041.33,0.00036986,120]
[339796190,1727987567244,-500.0,0.00036986,120]
[339796191,1727987567254,-500.0,0.00036986,120]
[339796192,1727987567264,-701.71,0.00036986,120]
[339796193,1727987567274,-512.38,0.00036986,120]
[339796194,1727987567284,-527.76,0.00036986,120]
[339796195,1727987567294,-527.0,0.00036986,120]
[339796196,1727987567304,-1302.4,0.00036986,120]
[339796197,1727987567313,-968.42,0.00036986,120]
[339796198,1727987567323,-1041.18,0.00036986,120]
[339796199,1727987567332,-500.0,0.00036986,120]
[339796200,1727987567342,-2058.43,0.00036986,120]
[339796201,1727987567353,-1510.82,0.00036986,120]
[339796202,1727987567362,-2566.99,0.00036986,120]
[339796203,1727987567372,-1635.85,0.00036986,120]
[339796204,1727987567382,-500.52,0.00036986,120]
[339796205,1727987567391,-1123.06,0.00036986,120]
[339796206,1727987567401,-1766.39,0.00036986,120]
[339796207,1727987567411,-1421.18,0.00036986,120]
[339796208,1727987567421,-2301.76,0.00036986,120]
[339796209,1727987567431,-1093.77,0.00036986,120]
[339796210,1727987567442,-2041.08,0.00036986,120]
[339796211,1727987567452,-1056.72,0.00036986,120]
[339796212,1727987567463,-500.0,0.00036986,120]
[339796213,1727987567472,-575.99,0.00036986,120]
[339796214,1727987567482,-4824.18,0.00036986,120]
[339796215,1727987567492,-2539.88,0.00036986,120]
[339796216,1727987567502,-1058.32,0.00036986,120]
[339796217,1727987567511,-1031.81,0.00036986,120]
[339796218,1727987567520,-315.34258209,0.00036986,120]
[339796219,1727987567530,-500.0,0.00036986,120]
[339796220,1727987567539,-2770.27,0.00036986,120]
[339796221,1727987567549,-2126.28,0.00036986,120]
[339796222,1727987567559,-361.52265276,0.00036986,120]
[339796223,1727987567568,-3109.58,0.00036986,120]
[339796224,1727987567577,-1989.39,0.00036986,120]
[339796225,1727987567586,-2838.83,0.00036986,120]
[339796226,1727987567596,-2454.73,0.00036986,120]
[339796227,1727987567608,-2489.9,0.00036986,120]
[339796228,1727987567619,-1548.63,0.00036986,120]
[339796229,1727987567629,-1539.86,0.00036986,120]
[339796230,1727987567640,-751.5,0.00036986,120]